bitfinex-derivatives/quotes_SOLF0:USTF0_20260107
["timestamp","ask_amount","ask_price","bid_price","bid_amount"]
[1767803484258,3.84769919,136.21,136.13,1.76644032]
[1767803485567,6.6137,136.2,136.13,1.76644032]
[1767803486458,3.84769919,136.21,136.14,1.76644032]
[1767803487664,6.6137,136.2,136.14,1.76644032]
[1767803489462,3.84769919,136.21,136.14,1.76644032]
[1767803492364,3.84769919,136.21,136.14,8.38294032]
[1767803492873,3.88120674,136.23,136.16,1.606639]
[1767803493057,1.70526911,136.22,136.16,1.606639]
[1767803494465,2.17593763,136.21,136.16,1.606639]
[1767803494665,3.88120674,136.21,136.15,6.616]
[1767803495058,3.88120674,136.21,136.15,8.222639]
[1767803496668,1.70526911,136.21,136.15,8.222639]
[1767803498565,1.70526911,136.21,136.11,102.9434]
[1767803498867,3.88120674,136.2,136.13,1.606639]
[1767803499071,1.70526911,136.19,136.13,1.606639]
[1767803499571,3.88120674,136.19,136.13,1.606639]
[1767803500271,3.88120674,136.19,136.13,8.223239]
[1767803502471,1.70526911,136.18,136.13,6.6166]
[1767803502873,1.70526911,136.18,136.12,6.6175]
[1767803503569,1.70526911,136.18,136.11,1.606639]
[1767803503570,2.17593763,136.17,136.11,1.606639]
[1767803503872,10.49640674,136.17,136.11,1.606639]
[1767803504380,3.88120674,136.15,136.09,1.606639]
[1767803505160,1.70526911,136.15,136.09,1.606639]
[1767803505465,2.17593763,136.17,136.09,1.606639]
[1767803505466,3.88120674,136.17,136.09,1.606639]
[1767803506574,3.88120674,136.17,136.1,6.6185]
[1767803508974,1.70526911,136.16,136.1,6.6185]
[1767803509173,2.17593763,136.15,136.1,6.6185]
[1767803511489,3.88120674,136.15,136.09,1.606639]
[1767803513179,1.70526911,136.15,136.09,1.606639]
[1767803513370,3.88120674,136.15,136.09,1.606639]
[1767803513676,1.70526911,136.15,136.09,1.606639]
[1767803513869,8.79103763,136.18,136.1,1.606639]
[1767803514077,10.49630674,136.18,136.1,1.606639]
[1767803514477,10.49630674,136.18,136.1,8.225139]
[1767803514677,1.70526911,136.17,136.1,8.225139]
[1767803515181,1.70526911,136.17,136.11,1.606639]
[1767803518784,1.70526911,136.15,136.09,1.606639]
[1767803519885,3.88120674,136.14,136.08,6.619]
[1767803520390,3.88120674,136.14,136.08,8.225639]
[1767803520680,2.17593763,136.15,136.09,8.225639]
[1767803521186,2.17593763,136.15,136.1,8.26306312]
[1767803521484,1.70696341,136.16,136.1,8.26306312]
[1767803522076,8.23932559,136.18,136.11,8.22729234]
[1767803522285,1.62452559,136.22,136.13,1.60939234]
[1767803522479,2.17593763,136.21,136.13,1.60939234]
[1767803522683,3.80046322,136.21,136.13,1.60939234]
[1767803523382,3.80046322,136.19,136.13,1.60939234]
[1767803523789,1.62452559,136.18,136.11,1.60939234]
[1767803523989,1.62452559,136.16,136.09,1.60939234]
[1767803525784,1.62452559,136.18,136.1,1.60939234]
[1767803526181,96.85800948,136.21,136.12,8.22689234]
[1767803526486,1.62452559,136.2,136.12,8.22689234]
[1767803526784,1.62452559,136.2,136.12,1.60939234]
[1767803526986,8.23712559,136.23,136.14,1.60939234]
[1767803527191,1.62452559,136.23,136.14,1.60939234]
[1767803527782,1.62452559,136.23,136.15,6.616]
[1767803527984,1.62452559,136.23,136.15,8.22539234]
[1767803528495,1.62452559,136.23,136.16,1.60939234]
[1767803529991,1.62452559,136.23,136.16,8.22499234]
[1767803535189,8.23682559,136.23,136.16,8.22499234]
[1767803535589,8.23682559,136.23,136.16,1.60939234]
[1767803538197,1.62452559,136.22,136.16,1.60939234]
[1767803538495,8.23742559,136.22,136.16,1.60939234]
[1767803539091,8.23772559,136.21,136.14,1.60939234]
[1767803541197,6.6127,136.23,136.15,1.60939234]
[1767803541392,8.23722559,136.23,136.15,1.60939234]
[1767803542000,6.6128,136.22,136.15,1.60939234]
[1767803542500,8.23732559,136.22,136.15,1.60939234]
[1767803543385,1.62452559,136.26,136.18,1.60939234]
[1767803544295,1.62452559,136.26,136.19,6.6142]
[1767803544800,1.62452559,136.26,136.19,8.22359234]
[1767803545595,1.62452559,136.26,136.2,6.6137]
[1767803546297,1.62452559,136.26,136.2,8.22309234]
[1767803547594,1.62452559,136.24,136.15,1.60939234]
[1767803547996,1.62452559,136.23,136.17,6.6151]
[1767803548190,1.62452559,136.23,136.15,1.60939234]
[1767803548397,1.62452559,136.23,136.12,1.60939234]
[1767803548606,1.62452559,136.21,136.12,1.60939234]
[1767803548901,1.62452559,136.21,136.14,6.6162]
[1767803548902,1.62452559,136.2,136.14,6.6162]
[1767803549107,1.62452559,136.2,136.12,1.60939234]
[1767803549494,8.23822559,136.2,136.13,6.6171]
[1767803549693,1.62452559,136.2,136.13,8.22649234]
[1767803551799,1.62452559,136.2,136.13,6.6171]
[1767803552106,1.62452559,136.2,136.13,8.33852936]
[1767803555199,1.62452559,136.2,136.13,1.72142936]
[1767803555805,8.23832559,136.2,136.13,1.72142936]
[1767803559400,8.23832559,136.2,136.08,3.40440948]
[1767803559401,1.76139019,136.17,136.07,1.72142936]
[1767803559609,1.76139019,136.17,136.08,1.72142936]
[1767803559809,86.8,136.18,136.08,1.72142936]
[1767803560006,88.56139019,136.18,136.08,1.72142936]
[1767803560714,6.6154,136.17,136.1,1.72142936]
[1767803561410,1.76139019,136.18,136.11,1.72142936]
[1767803562811,8.37609019,136.18,136.11,1.72142936]
[1767803563208,1.76139019,136.15,136.05,1.72142936]
[1767803563606,1.76139019,136.15,136.07,1.72142936]
[1767803563807,8.37749019,136.15,136.08,1.72142936]
[1767803564505,6.6169,136.14,136.08,1.72142936]
[1767803565414,6.6169,136.14,136.05,1.72142936]
[1767803565415,1.76139019,136.13,136.05,1.72142936]
[1767803565814,1.76139019,136.12,136.05,1.72142936]
[1767803566415,8.37979019,136.11,136.05,1.72142936]
[1767803567220,6.6184,136.11,136.05,1.72142936]
[1767803570718,8.37979019,136.11,136.05,1.72142936]
[1767803574125,6.6186,136.1,136.05,1.72142936]
[1767803575518,6.6192,136.09,136.03,1.72142936]
[1767803575723,6.6192,136.09,136.01,86.82]
[1767803575724,1.76139019,136.09,136.01,1.72142936]
[1767803576226,1.76139019,136.07,136.01,1.72142936]
[1767803577516,8.38139019,136.07,136.01,1.72142936]
[1767803578328,3.40440948,136.08,135.99,1.72142936]
[1767803578329,1.76139019,136.06,135.99,1.72142936]
[1767803578626,5.16579967,136.06,135.99,1.72142936]
[1767803579628,6.621,136.05,135.99,1.72142936]
[1767803580226,1.76139019,136.02,135.96,1.72142936]
[1767803580727,88.49108449,136.03,135.96,1.72142936]
[1767803582729,226.9445,136.12,135.97,1.61543733]
[1767803582730,1.60157134,136.05,135.97,1.61543733]
[1767803582941,1.60157134,136.09,135.98,1.61543733]
[1767803583228,1.60157134,136.08,135.98,1.61543733]
[1767803583433,1.60157134,136.06,135.98,1.61543733]
[1767803583628,1.60157134,136.04,135.96,1.61543733]
[1767803584539,1.60157134,136.02,135.96,1.61543733]
[1767803585234,1.60157134,136.02,135.93,1.61543733]
[1767803585744,1.60157134,136.02,135.95,8.24123733]
[1767803585927,95.10327134,136.04,135.95,1.61543733]
[1767803586634,97.28568133,136.04,135.95,3.79784732]
[1767803587132,8.22357134,136.03,135.95,3.79784732]
[1767803587638,1.60157134,136.03,135.96,1.61543733]
[1767803589537,6.6214,136.05,135.98,1.61543733]
[1767803590042,3.78398133,136.06,135.98,1.61543733]
[1767803590236,1.60157134,136.06,135.98,1.61543733]
[1767803590932,1.60157134,136.05,135.98,1.61543733]
[1767803592244,10.40548133,136.04,135.98,1.61543733]
[1767803592834,1.60157134,136.02,135.95,90.69784732]
[1767803593038,3.78398133,136.02,135.95,88.51543733]
[1767803593342,102.989,136.06,135.92,1.61543733]
[1767803593343,10.40738133,136.0,135.92,1.61543733]
[1767803594050,8.22557134,135.99,135.92,1.61543733]
[1767803594747,1.60157134,135.99,135.92,1.61543733]
[1767803595133,3.78398133,135.98,135.9,8.24373733]
[1767803595336,3.78398133,135.98,135.9,1.61543733]
[1767803595848,1.60157134,135.97,135.9,1.61543733]
[1767803596149,1.60157134,135.95,135.88,86.9]
[1767803596539,1.60157134,135.95,135.87,1.61543733]
[1767803596836,1.60157134,135.95,135.87,8.24503733]
[1767803597146,1.60157134,135.95,135.86,17.52964384]
[1767803597147,1.60157134,135.93,135.86,15.34723385]
[1767803597747,88.52157134,135.93,135.86,15.34723385]
[1767803597944,3.78398133,135.92,135.86,15.34723385]
[1767803598845,1.60157134,135.91,135.86,15.34723385]
[1767803599046,2.18240999,135.9,135.86,15.34723385]
[1767803599249,1.60157134,135.87,135.78,1.61543733]
[1767803599543,88.52157134,135.87,135.79,3.79784732]
[1767803599753,1.60157134,135.87,135.8,8.24843733]
[1767803600234,1.60157134,135.87,135.8,1.61543733]
[1767803600434,3.78398133,135.87,135.78,8.81630999]
[1767803600645,1.60157134,135.87,135.79,1.61543733]
[1767803600945,1.60157134,135.87,135.8,1.61543733]
[1767803601139,1.60157134,135.87,135.79,1.61543733]
[1767803601342,83.0,135.89,135.81,1.61543733]
[1767803601542,86.94,135.89,135.81,3.79784732]
[1767803601744,86.94,135.89,135.81,1.61543733]
[1767803601942,3.78398133,135.92,135.83,1.61543733]
[1767803602147,3.78398133,135.92,135.83,3.79784732]
[1767803602342,90.72398133,135.92,135.84,1.61543733]
[1767803606748,88.56157134,135.92,135.84,1.61543733]
[1767803607046,1.60157134,135.92,135.84,1.61543733]
[1767803608664,1.60157134,135.92,135.85,2.18240999]
[1767803608960,10.41018133,135.95,135.86,1.61543733]
[1767803609162,1.60157134,135.95,135.88,3.79784732]
[1767803610054,95.76740999,135.97,135.88,3.79784732]
[1767803610255,89.16240999,135.97,135.88,3.79784732]
[1767803610457,90.76398133,135.97,135.88,3.79784732]
[1767803610849,90.76398133,135.97,135.88,10.42664732]
[1767803611654,90.76398133,135.97,135.89,1.61543733]
[1767803611856,1.7480254,135.96,135.89,1.61543733]
[1767803613063,2.18240999,135.97,135.89,1.61543733]
[1767803613259,2.18240999,135.97,135.9,1.65153472]
[1767803613464,89.16240999,135.98,135.9,1.65153472]
[1767803613653,90.91043539,135.98,135.9,1.65153472]
[1767803615162,1.7480254,135.97,135.9,1.65153472]
[1767803615763,3.93043539,135.94,135.87,1.65153472]
[1767803616063,1.7480254,135.94,135.87,1.65153472]
[1767803617664,1.7480254,135.92,135.84,8.28243472]
[1767803617858,3.93043539,135.91,135.84,1.65153472]
[1767803618054,1.7480254,135.91,135.84,1.65153472]
[1767803618265,1.7480254,135.9,135.82,8.81420999]
[1767803618565,1.7480254,135.9,135.83,1.65153472]
[1767803619362,3.93043539,135.9,135.83,1.65153472]
[1767803619564,3.93043539,135.9,135.83,8.28313472]
[1767803620869,2.18240999,135.88,135.81,6.6323]
[1767803621062,2.18240999,135.88,135.8,1.65153472]
[1767803621063,3.93043539,135.88,135.8,1.65153472]
[1767803621263,2.18240999,135.86,135.8,1.65153472]
[1767803621464,2.18240999,135.86,135.8,8.28463472]
[1767803622561,2.18240999,135.87,135.8,8.28463472]
[1767803623367,2.18240999,135.87,135.8,1.65153472]
[1767803624071,2.18240999,135.87,135.8,8.28463472]
[1767803624468,1.7480254,135.87,135.8,1.65153472]
[1767803625172,1.7480254,135.86,135.77,1.65153472]
[1767803625371,1.7480254,135.85,135.77,1.65153472]
[1767803626079,1.7480254,135.85,135.77,8.28603472]
[1767803627171,1.7480254,135.85,135.77,1.65153472]
[1767803629181,1.7480254,135.84,135.77,1.65153472]
[1767803630283,1.7480254,135.84,135.75,1.65153472]
[1767803630674,88.7480254,135.84,135.75,1.65153472]
[1767803631384,1.7480254,135.84,135.75,1.65153472]
[1767803631684,1.7480254,135.84,135.76,8.28653472]
[1767803632279,1.7480254,135.84,135.77,1.65153472]
[1767803632474,1.7480254,135.84,135.77,8.28593472]
[1767803632674,1.7480254,135.84,135.75,1.65153472]
[1767803633479,1.7480254,135.84,135.76,1.65153472]
[1767803633679,1.7480254,135.83,135.73,1.65153472]
[1767803633885,1.7480254,135.81,135.69,6.79144204]
[1767803634080,1.7480254,135.81,135.68,103.2709]
[1767803634081,1.7480254,135.8,135.7,1.65153472]
[1767803634578,1.7480254,135.8,135.73,6.6365]
[1767803634785,1.7480254,135.8,135.73,8.28803472]
[1767803635179,87.02,135.82,135.74,8.28743472]
[1767803635482,1.7480254,135.82,135.74,8.28743472]
[1767803637271,1.7480254,135.82,135.75,1.65153472]
[1767803637579,8.3791254,135.85,135.76,1.65153472]
[1767803638185,1.7480254,135.85,135.77,8.28603472]
[1767803638388,1.7480254,135.85,135.77,1.65153472]
[1767803638980,7.32961771,135.88,135.79,1.65153472]
[1767803639288,1.7480254,135.88,135.79,1.65153472]
[1767803639685,5.58159231,135.88,135.77,6.6342]
[1767803639889,5.58159231,135.88,135.77,8.28573472]
[1767803639890,1.7480254,135.86,135.77,8.28573472]
[1767803640689,8.3783254,135.86,135.77,8.28573472]
[1767803640982,8.3783254,135.86,135.78,1.68446922]
[1767803641187,1.7480254,135.86,135.78,8.31846922]
[1767803641581,1.7480254,135.86,135.79,1.68446922]
[1767803641780,8.32687126,135.89,135.81,1.67058484]
[1767803641988,95.36687126,135.89,135.81,1.67058484]
[1767803642186,1.69767126,135.88,135.81,1.67058484]
[1767803642388,1.69767126,135.88,135.78,8.30438484]
[1767803642587,1.69767126,135.87,135.76,88.71058484]
[1767803643583,8.32847126,135.85,135.76,95.34548484]
[1767803644683,2.18894001,135.84,135.76,95.34548484]
[1767803645092,1.69767126,135.81,135.73,3.85952485]
[1767803645298,1.69767126,135.79,135.71,1.67058484]
[1767803645592,2.18894001,135.77,135.71,1.67058484]
[1767803646088,2.18894001,135.78,135.71,8.30808484]
[1767803646390,3.88661127,135.79,135.71,8.30808484]
[1767803646580,1.69767126,135.79,135.71,8.30808484]
[1767803647891,1.69767126,135.79,135.72,8.30758484]
[1767803648791,1.69767126,135.79,135.72,1.67058484]
[1767803650501,1.69767126,135.79,135.72,8.30758484]
[1767803650993,87.04,135.81,135.73,1.67058484]
[1767803651299,95.37047126,135.81,135.73,1.67058484]
[1767803651498,1.69767126,135.8,135.73,1.67058484]
[1767803652399,8.33087126,135.8,135.73,1.67058484]
[1767803653401,1.69767126,135.78,135.7,8.30818484]
[1767803653897,1.69767126,135.77,135.7,1.67058484]
[1767803654702,1.69767126,135.77,135.7,8.30858484]
[1767803654897,95.39117126,135.8,135.71,1.67058484]
[1767803655289,8.33137126,135.79,135.71,8.30808484]
[1767803655899,8.33137126,135.79,135.71,1.67058484]
[1767803656108,1.69767126,135.77,135.68,88.71058484]
[1767803656291,1.69767126,135.77,135.69,1.67058484]
[1767803656491,1.69767126,135.77,135.69,6.6385]
[1767803656690,1.69767126,135.77,135.7,1.67058484]
[1767803657195,1.69767126,135.77,135.68,88.71058484]
[1767803657394,1.69767126,135.77,135.69,8.30908484]
[1767803657599,1.69767126,135.77,135.7,1.67058484]
[1767803661204,95.39137126,135.79,135.71,1.67058484]
[1767803661798,88.75767126,135.79,135.71,1.67058484]
[1767803662016,88.75767126,135.79,135.68,87.04]
[1767803662017,1.69767126,135.79,135.72,1.67058484]
[1767803662193,1.69767126,135.83,135.72,1.67058484]
[1767803662399,1.69767126,135.82,135.72,1.67058484]
[1767803662703,1.69767126,135.82,135.73,8.30708484]
[1767803663298,1.69767126,135.81,135.73,1.67058484]
[1767803663498,1.69767126,135.81,135.71,1.67058484]
[1767803664300,1.69767126,135.79,135.71,1.67058484]
[1767803664500,1.69767126,135.79,135.69,1.67058484]
[1767803664999,1.69767126,135.77,135.69,8.30888484]
[1767803665898,1.69767126,135.77,135.7,1.67058484]
[1767803668809,1.69767126,135.75,135.67,1.67058484]
[1767803669112,1.69767126,135.73,135.64,24.08929126]
[1767803669297,1.69767126,135.73,135.66,1.67058484]
[1767803669502,1.69767126,135.73,135.66,8.31058484]
[1767803670102,92.20131931,135.76,135.68,1.67058484]
[1767803670302,1.69767126,135.75,135.68,1.67058484]
[1767803671009,95.41217126,135.78,135.69,1.67058484]
[1767803671406,1.69767126,135.78,135.71,1.67058484]
[1767803671709,88.77767126,135.79,135.69,1.74276959]
[1767803671908,1.77235196,135.78,135.7,8.38076959]
[1767803672109,1.77235196,135.78,135.7,1.74276959]
[1767803672306,1.77235196,135.74,135.65,1.74276959]
[1767803672824,1.77235196,135.76,135.67,1.74276959]
[1767803674113,3.42364805,135.78,135.68,1.74276959]
[1767803674114,5.19600001,135.78,135.68,1.74276959]
[1767803674310,1.77235196,135.77,135.68,1.74276959]
[1767803674512,1.77235196,135.77,135.69,1.74276959]
[1767803674715,88.85235196,135.8,135.69,1.74276959]
[1767803674920,1.77235196,135.8,135.69,1.74276959]
[1767803675314,1.77235196,135.8,135.71,1.74276959]
[1767803676410,1.77235196,135.78,135.68,1.74276959]
[1767803677707,112.2565601,135.82,135.69,1.74276959]
[1767803678014,1.77235196,135.8,135.69,1.74276959]
[1767803678218,1.77235196,135.8,135.7,8.38056959]
[1767803678219,1.77235196,135.79,135.7,8.38056959]
[1767803678419,1.77235196,135.79,135.7,1.74276959]
[1767803678920,1.77235196,135.77,135.67,1.74276959]
[1767803679903,1.77235196,135.76,135.67,8.38216959]
[1767803680416,1.77235196,135.76,135.68,1.74276959]
[1767803681121,5.90264562,135.75,135.68,1.74276959]
[1767803681321,5.90264562,135.74,135.68,1.74276959]
[1767803681521,1.77235196,135.76,135.68,1.74276959]
[1767803681713,1.77235196,135.74,135.65,8.38296959]
[1767803681909,5.90212755,135.73,135.66,1.74276959]
[1767803682213,5.90212755,135.72,135.66,1.74276959]
[1767803682417,1.77235196,135.74,135.66,1.74276959]
[1767803682615,5.90169649,135.73,135.66,1.74276959]
[1767803682817,5.90169649,135.72,135.66,1.74276959]
[1767803683008,1.77235196,135.74,135.66,8.38266959]
[1767803683209,5.90228385,135.73,135.67,1.74276959]
[1767803683411,5.90228385,135.72,135.67,1.74276959]
[1767803683616,1.77235196,135.74,135.67,1.74276959]
[1767803683820,5.90335857,135.73,135.67,1.74276959]
[1767803684018,1.77235196,135.74,135.67,1.74276959]
[1767803684217,5.90334515,135.73,135.67,1.74276959]
[1767803684414,1.77235196,135.74,135.67,1.74276959]
[1767803684614,1.77235196,135.74,135.64,116.14964894]
[1767803684615,1.77235196,135.72,135.64,111.25171853]
[1767803685014,1.77235196,135.72,135.65,1.74276959]
[1767803686322,103.2091,135.77,135.65,1.74276959]
[1767803686323,8.40835196,135.75,135.66,1.74276959]
[1767803686620,5.90280591,135.74,135.66,1.74276959]
[1767803686820,5.90280591,135.73,135.66,1.74276959]
[1767803687116,5.90280591,135.72,135.66,1.74276959]
[1767803687318,5.91089557,135.71,135.66,8.38276959]
[1767803687514,1.77235196,135.75,135.66,1.74276959]
[1767803687711,5.91037448,135.74,135.67,1.74276959]
[1767803687918,5.91037448,135.73,135.68,8.38166959]
[1767803688115,1.77235196,135.75,135.68,8.38166959]
[1767803688314,5.9108575,135.74,135.68,8.38166959]
[1767803688517,5.9108575,135.73,135.68,8.38166959]
[1767803688713,1.77235196,135.75,135.68,8.38166959]
[1767803688916,5.91464307,135.74,135.68,8.38166959]
[1767803689217,5.91464307,135.73,135.68,8.38166959]
[1767803689413,1.77235196,135.75,135.68,15.24243198]
[1767803689608,5.91792836,135.74,135.68,15.24243198]
[1767803689812,9.838e-05,135.73,135.7,1.74276959]
[1767803690009,1.77235196,135.77,135.7,1.74276959]
[1767803690621,1.77235196,135.77,135.7,8.60353198]
[1767803691222,1.77235196,135.79,135.71,7.73500909]
[1767803691422,1.77235196,135.79,135.72,1.09750909]
[1767803692823,1.77235196,135.79,135.72,7.73450909]
[1767803693725,1.77235196,135.81,135.73,1.11360928]
[1767803694619,1.77235196,135.81,135.74,7.75748231]
[1767803695016,1.77235196,135.81,135.74,1.12148231]
[1767803696824,103.1398,135.86,135.74,1.12148231]
[1767803696825,1.77235196,135.88,135.74,104.7059]
[1767803697029,1.77235196,135.88,135.78,1.14461408]
[1767803697225,1.77235196,135.87,135.78,1.14461408]
[1767803698222,1.77235196,135.83,135.75,1.15216393]
[1767803701022,1.77235196,135.83,135.76,1.17422161]
[1767803701328,1.77235196,135.87,135.76,1.17422161]
[1767803702524,1.6644155,135.86,135.77,6.6345]
[1767803703228,1.6644155,135.85,135.76,1.17422161]
[1767803703618,8.2953155,135.85,135.76,7.80932161]
[1767803703933,1.6644155,135.84,135.74,1.19318532]
[1767803704524,1.6644155,135.84,135.72,1.2064201]
[1767803704726,1.74618668,135.83,135.74,6.636]
[1767803705923,8.37798668,135.83,135.74,6.636]
[1767803706125,1.74618668,135.82,135.73,1.21996956]
[1767803707225,1.74618668,135.81,135.73,7.85646956]
[1767803708232,8.37898668,135.81,135.73,1.21996956]
[1767803708432,1.74618668,135.8,135.71,87.06]
[1767803709323,8.37988668,135.79,135.71,88.29972379]
[1767803710023,108.75974605,135.82,135.67,6.86076239]
[1767803710024,1.74618668,135.77,135.67,6.86076239]
[1767803710226,1.74618668,135.77,135.68,1.24615251]
[1767803710625,8.38088668,135.77,135.69,1.24615251]
[1767803710826,1.74618668,135.77,135.69,1.24615251]
[1767803711022,5.58854605,135.76,135.65,1.2525425]
[1767803711226,1.74618668,135.73,135.65,1.2525425]
[1767803711833,1.74618668,135.72,135.65,1.2525425]
[1767803712134,1.74618668,135.72,135.64,15.56818655]
[1767803713237,1.74618668,135.7,135.64,15.56818655]
[1767803713733,1.74618668,135.68,135.64,15.56818655]
[1767803713935,1.74618668,135.68,135.59,1.26505356]
[1767803714436,1.74618668,135.68,135.6,1.71839926]
[1767803715237,93.7184,135.7,135.61,1.71839926]
[1767803715436,87.08,135.7,135.61,1.71839926]
[1767803716641,5.58854605,135.69,135.58,1.71839926]
[1767803717240,5.58854605,135.69,135.6,1.71839926]
[1767803717434,87.1,135.68,135.6,1.71839926]
[1767803719643,6.6384,135.7,135.61,1.71839926]
[1767803719844,108.83624605,135.72,135.61,1.71839926]
[1767803719845,12.22594605,135.72,135.61,1.71839926]
[1767803720135,87.1,135.71,135.61,1.71839926]
[1767803720341,87.1,135.71,135.63,1.71839926]
[1767803721236,6.6374,135.72,135.64,1.71839926]
[1767803721431,93.7574,135.72,135.64,1.71839926]
[1767803722442,87.12,135.72,135.64,1.71839926]
[1767803724140,5.58854605,135.74,135.65,1.71839926]
[1767803724350,87.12,135.73,135.65,1.71839926]
[1767803724742,89.31251392,135.73,135.65,1.71839926]
[1767803725641,89.31251392,135.73,135.65,8.35879926]
[1767803725838,89.31251392,135.73,135.66,1.71839926]
[1767803726040,2.19251392,135.73,135.66,1.71839926]
[1767803726434,2.19251392,135.72,135.63,3.91091318]
[1767803726639,2.19251392,135.72,135.64,1.71839926]
[1767803726846,2.19251392,135.71,135.64,1.71839926]
[1767803727048,395.6081,135.82,135.66,1.71839926]
[1767803727248,382.343,135.82,135.68,1.71839926]
[1767803727442,2.19251392,135.78,135.7,1.71839926]
[1767803728044,2.19251392,135.76,135.69,6.6382]
[1767803728346,2.19251392,135.76,135.68,1.71839926]
[1767803728551,87.12,135.78,135.68,1.71839926]
[1767803729443,6.6354,135.76,135.68,1.71839926]
[1767803730152,6.6354,135.76,135.65,1.71839926]
[1767803730541,6.6354,135.76,135.67,6.6395]
[1767803730742,6.6354,135.76,135.67,8.35789926]
[1767803731849,5.03182718,135.76,135.64,2.02062788]
[1767803732447,5.03182718,135.76,135.66,2.02062788]
[1767803732646,87.12,135.75,135.66,2.02062788]
[1767803733448,87.12,135.75,135.66,8.66062788]
[1767803733949,6.6362,135.74,135.66,2.02062788]
[1767803734849,6.6355,135.76,135.66,2.02062788]
[1767803735152,87.12,135.74,135.66,2.02062788]
[1767803736552,87.12,135.74,135.66,8.66062788]
[1767803736857,93.7563,135.74,135.66,2.02062788]
[1767803738661,6.6367,135.73,135.63,8.66182788]
[1767803738859,92.15182718,135.74,135.63,8.66182788]
[1767803739263,6.6376,135.71,135.63,8.66182788]
[1767803739860,6.6371,135.73,135.63,8.66182788]
[1767803740051,92.15182718,135.74,135.63,8.66182788]
[1767803740251,87.12,135.73,135.65,2.02062788]
[1767803741662,87.12,135.73,135.66,6.6399]
[1767803742461,87.12,135.73,135.65,2.02062788]
[1767803743459,11.66842718,135.74,135.65,2.02062788]
[1767803743766,87.12,135.73,135.65,8.66102788]
[1767803743957,87.12,135.73,135.62,2.02062788]
[1767803744157,87.12,135.73,135.64,6.641]
[1767803744565,5.03182718,135.71,135.62,2.02062788]
[1767803745559,5.03182718,135.71,135.6,2.02062788]
[1767803746456,6.6386,135.69,135.61,6.6424]
[1767803746655,87.12,135.68,135.61,6.6424]
[1767803747073,87.12,135.68,135.57,2.02062788]
[1767803747566,87.12,135.68,135.56,8.85678094]
[1767803747762,92.15182718,135.68,135.56,2.02062788]
[1767803748165,11.67122718,135.68,135.56,2.02062788]
[1767803748365,108.27952718,135.72,135.57,2.02062788]
[1767803748567,87.12,135.71,135.58,2.02062788]
[1767803749068,11.67042718,135.69,135.6,6.6429]
[1767803749771,6.6391,135.68,135.58,2.02062788]
[1767803750765,93.7791,135.68,135.58,2.02062788]
[1767803750967,87.14,135.68,135.59,8.66402788]
[1767803751167,5.03182718,135.69,135.59,2.02062788]
[1767803751362,87.14,135.68,135.59,2.02062788]
[1767803751563,87.14,135.68,135.6,6.6428]
[1767803752274,93.7791,135.68,135.6,2.02062788]
[1767803752761,87.14,135.68,135.6,2.02062788]
[1767803753671,87.14,135.68,135.6,8.66352788]
[1767803753866,87.14,135.68,135.6,2.02062788]
[1767803754065,11.67052718,135.69,135.6,2.02062788]
[1767803754265,93.7791,135.68,135.6,2.02062788]
[1767803754460,2.19479101,135.66,135.6,2.02062788]
[1767803757466,2.19479101,135.66,135.58,13.51892422]
[1767803757667,2.19479101,135.66,135.58,15.5395521]
[1767803758172,2.19479101,135.66,135.58,8.66452788]
[1767803758575,190.4206,135.68,135.56,2.02062788]
[1767803758784,87.14,135.67,135.57,2.02062788]
[1767803758970,2.19479101,135.64,135.57,2.02062788]
[1767803759170,2.19479101,135.64,135.57,8.66472788]
[1767803759473,87.14,135.65,135.57,8.66472788]
[1767803759668,89.33479101,135.65,135.57,8.66472788]
[1767803759870,2.19479101,135.65,135.58,2.02062788]
[1767803760269,2.19479101,135.65,135.58,8.66442788]
[1767803761277,2.19479101,135.65,135.58,2.02062788]
[1767803761481,2.19479101,135.65,135.56,8.87433274]
[1767803761780,2.19479101,135.66,135.59,6.6434]
[1767803761975,89.33479101,135.67,135.59,8.80524411]
[1767803762171,2.19479101,135.67,135.59,8.80524411]
[1767803762480,89.33479101,135.67,135.59,8.80524411]
[1767803762670,95.97439101,135.67,135.59,8.80524411]
[1767803762875,2.19479101,135.65,135.59,8.80524411]
[1767803763181,2.19479101,135.66,135.59,8.80524411]
[1767803763378,2.19479101,135.64,135.56,2.16184411]
[1767803764576,2.19479101,135.62,135.54,100.65591939]
[1767803764881,2.19479101,135.6,135.52,2.16184411]
[1767803765084,2.19479101,135.6,135.53,2.16184411]
[1767803765873,2.19705884,135.59,135.53,2.16184411]
[1767803766274,2.19705884,135.57,135.51,6.6473]
[1767803766485,2.19705884,135.59,135.51,8.80914411]
[1767803767374,8.84075884,135.59,135.51,8.80914411]
[1767803767569,6.6437,135.59,135.51,2.16184411]
[1767803767778,2.19705884,135.55,135.47,1.28413284]
[1767803767977,2.19705884,135.53,135.45,2.16184411]
[1767803768380,93.805,135.56,135.46,8.81144411]
[1767803768581,2.19705884,135.54,135.46,8.81144411]